[Event "2nd ITT FENAMAC-B 2020"]
[Site "Toluca"]
[Date "2020.03.15"]
[Round "7.3"]
[White "Cofre Archibold, Nestor"]
[Black "Della Morte, Pablo"]
[Result "0-1"]
[ECO "A40"]
[WhiteElo "2304"]
[BlackElo "2273"]
[Annotator "ChessBase"]
[PlyCount "56"]
[EventDate "2020.03.12"]
[EventType "tourn"]
[EventCountry "MEX"]
[SourceTitle "playchess.com"]
[Source "ChessBase"]
[SourceQuality "1"]
[TimeControl "5400+30"]

1. d4 {[%emt 0:00:48]} Nf6 {[%emt 0:00:26]} 2. c4 {[%emt 0:00:05]} e6 {[%emt 0:00:08]} 3. g3 {[%emt 0:00:11]} Bb4+ {[%emt 0:04:51]} 4. Bd2 {[%emt 0:00:10]} c5 {[%emt 0:00:14]} 5. Bg2 {[%emt 0:00:44]} O-O {[%emt 0:00:35]} 6. Bxb4 {[%emt 0:00:22]} cxb4 {[%emt 0:00:09]} 7. e4 {[%emt 0:00:02]} d6 {[%emt 0:00:22]} 8. Ne2 {[%emt 0:00:39]} e5 {[%emt 0:01:16]} 9. h3 {[%emt 0:01:29]} Re8 {[%emt 0:05:21]} 10. d5 {[%emt 0:17:02]} a5 {[%emt 0:00:22]} 11. O-O {[%emt 0:00:43]} Na6 {[%emt 0:00:25]} 12. Nd2 {[%emt 0:10:09]} Nc5 {[%emt 0:00:51]} 13. a4 {[%emt 0:08:52]} Bd7 {[%emt 0:15:54]} 14. b3 {[%emt 0:00:14]} h5 {[%emt 0:09:00]} 15. Kh2 {[%emt 0:04:47]} Nh7 {[%emt 0:02:41]} 16. Qc2 {[%emt 0:11:05]} g6 {[%emt 0:05:33]} 17. f4 {[%emt 0:08:35]} exf4 {[%emt 0:00:59]} 18. Nxf4 {[%emt 0:02:14]} Qe7 {[%emt 0:01:01]} 19. Rae1 {[%emt 0:03:05]} h4 {[%emt 0:00:58]} 20. Re3 {[%emt 0:05:37]} hxg3+ {[%emt 0:05:17]} 21. Rxg3 {[%emt 0:00:18]} Qe5 {[%emt 0:01:46]} 22. Nd3 {[%emt 0:03:01]} Nxd3 {[%emt 0:00:51]} 23. Qxd3 {[%emt 0:00:08]} Nf6 {[%emt 0:02:24]} 24. Bf3 {[%emt 0:05:30]} Kg7 {[%emt 0:00:36]} 25. Kg2 {[%emt 0:02:14]} Rh8 {[%emt 0:01:13]} 26. Bd1 {[%emt 0:00:08]} Bxh3+ {[%emt 0:02:09]} 27. Rxh3 {[%emt 0:04:56]} Rxh3 {[%emt 0:00:07]} 28. Qxh3 {[%emt 0:00:03]} Qg5+ {[%emt 0:00:06]} 0-1